[Event "European Women-ch 2023"]
[Site "Petrovac"]
[Date "2023.03.27"]
[Round "9.8"]
[White "Olde, Margareth"]
[Black "Badelka, Olga"]
[Result "1/2-1/2"]
[ECO "E06"]
[WhiteElo "2234"]
[BlackElo "2428"]
[Annotator "TA"]
[PlyCount "120"]
[EventDate "2023.03.15"]
[EventType "swiss"]
[EventCountry "MNE"]
[SourceTitle "playchess.com"]
[Source "ChessBase"]
[SourceQuality "1"]
[TimeControl "40/5400+30:1800+30"]

{[%evp 12,120,22,11,21,24,23,0,0,0,0,-21,-19,-13,-14,-16,-18,-28,-6,-23,-19,-10,0,0,0,-45,-46,-44,-54,-54,-39,-40,-41,-105,-99,-115,-104,-99,-83,-109,-55,-117,-75,-135,-84,-114,-50,-68,-62,-56,0,-112,-112,-145,-52,-52,-54,-81,249,267,262,265,573,8,8,8,12,8,8,0,0,0,13,0,0,0,0,0,0,0,0,0,0,0,0,0,0,0,0,0,0,0,0,0,0,0,0,0,0,0,0,0,0,0,0,0,0,0,0,0,0]} 1. d4 {[%emt 0:00:02]} Nf6 {[%emt 0:00:05]} 2. c4 {[%emt 0:00:09]} e6 {[%emt 0:00:05]} 3. Nf3 {[%emt 0:00:09]} d5 {[%emt 0:00:06]} 4. g3 {[%emt 0:00:15]} Be7 {[%emt 0:00:09]} 5. Bg2 {[%emt 0:00:12]} O-O {[%emt 0:00:06]} 6. Nc3 {[%emt 0:00:43]} c6 {[%emt 0:00:11]} 7. O-O {[%emt 0:00:40]} a5 {[%emt 0:00:05] E06: Closed Catalan: Early deviations.} 8. b3 {[%emt 0:02:01] The main line 8.b3 scores better than 8.Nd2.} b6 {[%emt 0:01:23]} 9. Ne5 {[%emt 0:01:30]} Nfd7 {[%emt 0:00:39]} 10. Nxd7 {[%emt 0:05:56]} Nxd7 {[%emt 0:00:08]} 11. cxd5 {[%emt 0:00:49]} cxd5 {[%emt 0:00:48]} 12. a4 {[%emt 0:13:54]} Ba6 {[%emt 0:01:23]} 13. Nb5 {[%emt 0:12:16] [#]} Rc8 $146 {[%emt 0:09:07]} ({Predecessor:} 13... Nf6 14. Bf4 Rc8 15. Rc1 Qd7 16. Qd3 Ba3 17. Ra1 Bb4 18. Rfc1 h6 19. f3 Rfd8 20. Rxc8 Rxc8 {0-1 Fus,J (2378)-Neugebauer,M (2505) Przeworsk 2022 (7)}) 14. Qd3 {[%emt 0:04:36]} Bb4 {[%emt 0:09:06]} 15. Bd2 {[%emt 0:03:10]} (15. Bf4 $5) 15... Bxb5 {[%emt 0:04:14]} 16. axb5 {[%emt 0:00:08]} Bxd2 {[%emt 0:00:38]} 17. Qxd2 {[%emt 0:00:03]} Nf6 {[%emt 0:04:00]} 18. Rfc1 {[%emt 0:08:39]} Qd7 {[%emt 0:02:53]} 19. Qd3 {[%emt 0:00:24]} Rxc1+ {[%emt 0:03:01]} 20. Rxc1 {[%emt 0:00:03]} Rc8 {[%emt 0:00:04] Repels Rc6} 21. Rxc8+ {[%emt 0:01:04]} Qxc8 $15 {[%emt 0:00:02][%mdl 4096] Endgame KQB-KQN} 22. f3 {[%emt 0:01:35]} ({White should play} 22. Bf3 $15) 22... Qc1+ {[%emt 0:07:42]} 23. Bf1 {[%emt 0:02:20]} g5 {[%emt 0:17:21]} 24. Kf2 {[%emt 0:04:14]} h6 {[%emt 0:05:12]} 25. Qe3 {[%emt 0:10:54]} Qc7 {[%emt 0:00:15]} (25... Qc2 $17) 26. Ke1 {[%emt 0:03:05]} (26. Qd2 $15) 26... Kf8 {[%emt 0:00:10]} 27. Kd2 {[%emt 0:01:01]} (27. Kf2 $142) 27... Ke7 {[%emt 0:00:11]} (27... Qd6 $142 28. Qc3 g4) 28. Qd3 {[%emt 0:03:43]} h5 {[%emt 0:04:39]} ({Black should try} 28... Qd6 $17 29. Qc3 h5) 29. e4 {[%emt 0:04:47]} dxe4 {[%emt 0:01:46]} 30. fxe4 {[%emt 0:00:03]} Qd6 {[%emt 0:05:10]} (30... e5 $1 $15) 31. Be2 {[%emt 0:03:08]} (31. e5 $11 {was the only way to keep the balance.} Qb4+ 32. Kc2) 31... Qb4+ $17 {[%emt 0:10:12]} 32. Kd1 {[%emt 0:08:25] [#]} e5 {[%emt 0:00:47]} 33. dxe5 $15 {[%emt 0:00:58]} Nxe4 {[%emt 0:00:04] ...Nf2+ would be deadly.} 34. Qe3 {[%emt 0:01:57] Wards off Nf2+. And now Bc4 would win.} a4 $2 {[%emt 0:11:32][%mdl 8192]} (34... Nc3+ $1 $17 {stays on course.} 35. Kc2 Nxe2 36. Qxe2 Qc5+ 37. Kb2 Ke6 38. Qxh5 Qxe5+ 39. Ka2 Qxb5) 35. Bc4 $18 {[%emt 0:01:00]} Nc3+ {[%emt 0:00:05] [#]} 36. Kc1 $1 {[%emt 0:01:12]} Qa3+ $2 {[%emt 0:00:15] [#]} (36... Nxb5 $2 37. Qxg5+ Ke8 38. Qg8+ (38. Qxh5 Qe1+ 39. Qd1 Qc3+ 40. Qc2 Qe1+ 41. Qd1 Qc3+ 42. Qc2 Qe1+ 43. Qd1 $11) 38... Ke7 39. Qxf7+ (39. Bxf7 $2 {loses.} Qe1+ 40. Kc2 Qf2+ 41. Kd3 Qf3+ 42. Kd2 Qxf7 $19) 39... Kd8 40. Qd5+ (40. Qxh5 Qc3+ 41. Kd1 Qd4+ 42. Ke2 Nc3+ 43. Kf1 b5 $11) 40... Kc7 41. Bxb5 $18) (36... axb3 37. Qxg5+ Ke8 38. Qg8+ Qf8 39. Bxf7+ Ke7) 37. Kc2 $2 {[%emt 0:01:03]} (37. Kd2 $1 $18 {[%cal Rd2c3]}) 37... axb3+ $1 $11 {[%emt 0:00:05] The position is equal.} 38. Bxb3 {[%emt 0:00:23]} (38. Kxc3 $2 b2+ 39. Bb3 b1=Q $19) 38... Nd5 $1 {[%emt 0:04:10]} 39. Qxg5+ {[%emt 0:00:13]} (39. Bxd5 $2 {is the wrong capture.} Qxe3 40. Bb7 Qe2+ 41. Kc1 Qxh2 $19) (39. Qf3 $5 Qc5+ $8 40. Kb2 Qd4+ 41. Kb1 Qe4+ {[%mdl 64] Decoy} 42. Qxe4 Nc3+ 43. Kc2 Nxe4 44. Bd5 $11) 39... Ke8 $132 {[%emt 0:00:04][%mdl 2048] Black is not keeping still} 40. Qg8+ {[%emt 0:00:00]} (40. Bxd5 $5 Qc5+ $8 41. Kd1 Qxd5+ 42. Ke1 $11) 40... Ke7 $1 {[%emt 0:00:00] Threatens to win with ...Nb4+.} 41. Qg5+ {[%emt 0:02:29]} Ke8 {[%emt 0:00:05]} 42. Bxd5 {[%emt 0:06:45] Qg8+ would kill now.} (42. Qd2 {simplifies} Qc5+ 43. Kb2 Nc7 44. Qc3) 42... Qc5+ {[%emt 0:00:03]} 43. Kb2 {[%emt 0:00:15] Qg8+ is the strong threat.} Qxd5 {[%emt 0:00:32]} 44. Qxh5 {[%emt 0:00:42]} Qxb5+ {[%emt 0:00:28] KQ-KQ} 45. Kc2 {[%emt 0:00:35]} Qc4+ {[%emt 0:02:15]} 46. Kd2 {[%emt 0:00:33]} Qd4+ {[%emt 0:03:29]} 47. Ke1 {[%emt 0:00:52]} Qg1+ {[%emt 0:03:12]} 48. Ke2 {[%emt 0:00:45]} Qg2+ {[%emt 0:00:03]} 49. Ke3 {[%emt 0:00:51]} Qg1+ {[%emt 0:00:16]} 50. Kd3 {[%emt 0:00:32]} Qf1+ {[%emt 0:02:49]} 51. Qe2 {[%emt 0:05:10]} Qb1+ {[%emt 0:00:05]} 52. Kc3 {[%emt 0:01:47]} Ke7 {[%emt 0:02:25]} 53. Qf2 {[%emt 0:02:26]} Qa1+ {[%emt 0:01:30]} 54. Kb3 {[%emt 0:04:37]} Qxe5 {[%emt 0:03:37]} 55. Qxb6 {[%emt 0:00:22]} Qd5+ {[%emt 0:00:08]} 56. Kc3 {[%emt 0:00:23]} Qf3+ {[%emt 0:00:16]} 57. Kb4 {[%emt 0:00:56]} Qg4+ {[%emt 0:01:40]} 58. Ka3 {[%emt 0:00:19] Strongly threatening Qb4+.} Qf3+ {[%emt 0:01:19]} 59. Qb3 {[%emt 0:01:28]} Qa8+ {[%emt 0:00:03]} 60. Kb2 {[%emt 0:01:51]} Qh8+ {[%emt 0:00:08] Weighted Error Value: White=0.19 (very precise) /Black=0.29 (precise)} 1/2-1/2

[Event "European Women-ch 2023"]
[Site "Petrovac"]
[Date "2023.03.27"]
[Round "9.8"]
[White "Silva, Mariana Sofia T."]
[Black "Paasikangas, Johanna"]
[Result "0-1"]
[ECO "E64"]
[WhiteElo "1920"]
[BlackElo "2115"]
[Annotator "TA"]
[PlyCount "116"]
[EventDate "2023.03.15"]
[EventType "swiss"]
[EventCountry "MNE"]
[SourceTitle "playchess.com"]
[Source "ChessBase"]
[SourceQuality "1"]
[TimeControl "40/5400+30:1800+30"]

{[%evp 15,116,35,32,14,10,-7,-4,-21,-32,-112,-100,-98,-73,-97,-65,-72,-44,-88,0,-51,-41,-40,-17,-29,-19,-25,-33,-18,-10,-27,-20,-68,-66,-62,-79,-51,-63,-101,-91,-168,-165,-176,-161,-164,-177,-170,-153,-217,-213,-229,-214,-245,-238,-240,-198,-209,-226,-368,-364,-367,-370,-393,-387,-383,-316,-443,-440,-495,-485,-472,-458,-506,-503,-628,-551,-528,-499,-501,-446,-435,-410,-789,-786,-762,-758,-725,-707,-1294,-1189,-4460,-4133,-3719,-3275,-4398,-3283,-4631,-4132,-4674,-4460,-2413,-2031,-1583,-1559]} 1. d4 {[%emt 0:00:04]} Nf6 {[%emt 0:00:08]} 2. c4 {[%emt 0:00:08]} g6 {[%emt 0:00:06]} 3. g3 {[%emt 0:00:11]} Bg7 {[%emt 0:00:10]} 4. Bg2 {[%emt 0:00:07]} O-O {[%emt 0:00:07]} 5. Nc3 {[%emt 0:00:06]} d6 {[%emt 0:00:13]} 6. Nf3 {[%emt 0:00:10]} c5 {[%emt 0:00:07]} 7. dxc5 {[%emt 0:01:58]} dxc5 {[%emt 0:00:07]} 8. Qxd8 {[%emt 0:06:04]} Rxd8 {[%emt 0:00:07]} 9. Bf4 {[%emt 0:00:16] E64: King's Indian: Fianchetto: 6...c5 7 d5.} Nc6 {[%emt 0:03:48] [#]} 10. Rc1 $146 {[%emt 0:06:01]} ({Predecessor:} 10. Ne5 Na5 11. Rc1 Be6 12. Na4 Rac8 13. Bd2 Nxc4 14. Nxc4 Bxc4 15. Bxb7 Bd5 16. Bxc8 Bxh1 {1-0 Stefansson,V (2465)-Collins,S (2456) Dublin Irish New Year GM 2022 (1)}) 10... Be6 {[%emt 0:08:22]} 11. Nb5 {[%emt 0:08:14] The position is equal.} Nh5 {[%emt 0:04:25] ...Nxf4 is the strong threat.} 12. b3 {[%emt 0:30:15]} (12. Be3 $15) 12... Nxf4 $17 {[%emt 0:03:42]} 13. gxf4 {[%emt 0:00:56]} Rac8 {[%emt 0:06:51] Prevents Nc7} 14. O-O {[%emt 0:06:37]} a6 {[%emt 0:08:56]} 15. Nc3 {[%emt 0:00:07]} Rc7 {[%emt 0:03:40] Black is more active.} 16. Ng5 {[%emt 0:07:14] [#]} Bg4 {[%emt 0:10:31] This pair of bishops is nice.} (16... Bxc3 $1 $17 17. Nxe6 fxe6 18. Rxc3 Rd2) 17. e3 {[%emt 0:05:10] Wards off Nd4} ({White should try} 17. Nge4 $11) 17... Bxc3 $15 {[%emt 0:12:03]} 18. Rxc3 {[%emt 0:00:07]} Bf5 {[%emt 0:04:17]} 19. a3 {[%emt 0:07:19] Against Nb4} h6 {[%emt 0:02:04]} 20. Ne4 {[%emt 0:01:17]} b6 {[%emt 0:00:08]} 21. Ng3 {[%emt 0:03:29]} Bg4 {[%emt 0:01:58]} 22. h3 {[%emt 0:01:11]} Be6 {[%emt 0:00:11]} 23. Rfc1 {[%emt 0:05:09]} (23. Rb1 $11) 23... Rd2 {[%emt 0:04:20]} 24. R3c2 {[%emt 0:06:34] Against Ra2} Rxc2 {[%emt 0:00:14]} 25. Rxc2 {[%emt 0:00:02]} Na5 {[%emt 0:00:09]} 26. Rc3 {[%emt 0:01:02] Black keeps a firm grip on the game.} Rd7 {[%emt 0:00:18]} 27. Nf1 {[%emt 0:01:02]} (27. Bf3 $17 {was necessary.}) 27... Rd1 $19 {[%emt 0:00:40]} 28. Kh2 {[%emt 0:00:09]} Ra1 {[%emt 0:01:25]} 29. a4 {[%emt 0:02:29]} Ra2 {[%emt 0:00:34]} 30. Rd3 {[%emt 0:00:29]} Rxf2 {[%emt 0:03:15]} 31. Kg3 {[%emt 0:00:56]} (31. Nd2 $17) 31... Rb2 {[%emt 0:00:24]} 32. Nd2 {[%emt 0:00:08]} Kg7 {[%emt 0:00:21]} 33. Bd5 {[%emt 0:00:46]} Bf5 {[%emt 0:02:17]} 34. e4 {[%emt 0:00:49]} Bc8 {[%emt 0:01:13]} 35. h4 {[%emt 0:00:31]} h5 {[%emt 0:00:17]} 36. Kf3 {[%emt 0:00:43]} (36. f5 {is a better defense.}) 36... Bg4+ {[%emt 0:00:15]} 37. Ke3 {[%emt 0:00:04]} Bd1 {[%emt 0:00:40][%cal Rd1b3]} 38. f5 {[%emt 0:00:24]} Bxb3 {[%emt 0:01:39]} (38... Nxb3 39. fxg6 fxg6 40. Nxb3 Rxb3 41. Bc6 $19) 39. fxg6 {[%emt 0:00:29]} fxg6 {[%emt 0:00:17]} ({Weaker is} 39... Bxa4 40. Bxf7 Ra2 41. Nf3 $15) 40. e5 {[%emt 0:00:00]} (40. Kf4 $142) 40... Bxa4 {[%emt 0:00:00]} 41. Nf3 {[%emt 0:05:47]} Bc2 {[%emt 0:06:18]} 42. Rd2 {[%emt 0:02:15]} Rb3+ {[%emt 0:00:06]} 43. Kf4 {[%emt 0:03:38]} Bf5 {[%emt 0:01:43]} 44. Ng5 {[%emt 0:05:58]} Rd3 {[%emt 0:08:12]} 45. Ne6+ {[%emt 0:00:51]} Kh6 {[%emt 0:00:34]} 46. Rb2 {[%emt 0:04:08]} Bxe6 {[%emt 0:00:56]} 47. Bxe6 {[%emt 0:00:04][%mdl 4096] Endgame KRB-KRN} Rd4+ {[%emt 0:00:05]} 48. Kf3 {[%emt 0:00:47]} (48. Kg3 $142) 48... Nxc4 {[%emt 0:01:03] Black is clearly winning.} 49. Bxc4 {[%emt 0:00:07]} Rxc4 {[%emt 0:00:05]} 50. Rxb6 {[%emt 0:00:07] KR-KR} Kg7 {[%emt 0:00:38]} 51. Rxa6 {[%emt 0:00:42]} Rxh4 {[%emt 0:00:08]} 52. Rc6 {[%emt 0:00:27]} c4 {[%emt 0:00:07]} 53. Rc7 {[%emt 0:01:02]} Kf7 {[%emt 0:00:07]} 54. Rc6 {[%emt 0:00:05]} Rg4 {[%emt 0:02:59]} 55. Ke3 {[%emt 0:01:05] [#]} c3 $1 {[%emt 0:02:55]} 56. Kf3 {[%emt 0:00:17]} (56. e6+ Kf6) 56... g5 {[%emt 0:01:45] Strongly threatening ...Rb4.} 57. Rxc3 {[%emt 0:00:32]} Ke6 {[%emt 0:00:08]} 58. Rc5 {[%emt 0:01:21]} Rf4+ {[%emt 0:00:09] Weighted Error Value: White=0.60/Black=0.11 (very precise)} 0-1

[Event "European Women-ch 2023"]
[Site "Petrovac"]
[Date "2023.03.27"]
[Round "9.9"]
[White "Mkrtchyan, Mariam"]
[Black "Garifullina, Leya"]
[Result "0-1"]
[ECO "A11"]
[WhiteElo "2343"]
[BlackElo "2372"]
[Annotator "TA"]
[PlyCount "110"]
[EventDate "2023.03.15"]
[EventType "swiss"]
[EventCountry "MNE"]
[SourceTitle "playchess.com"]
[Source "ChessBase"]
[SourceQuality "1"]
[TimeControl "40/5400+30:1800+30"]

{[%evp 13,110,12,14,0,0,-14,-18,-23,9,8,8,14,15,13,10,-7,0,-11,0,-12,0,0,0,-7,-7,-12,-9,-18,-14,-15,0,0,0,-81,-79,-91,-85,-123,-125,-120,-121,-129,-127,-129,-125,-114,-128,-254,-256,-237,-227,-332,-315,-286,-160,-164,-118,-123,-121,-157,-140,-132,0,0,0,0,0,-707,-628,-1116,-864,-12831,-12831,-12831,-12831,-12831,-12831,-12837,-12837,-12838,-12839,-12839,-12839,-12840,-12840,-12841,-12841,-12841,-12841,-12841,-12842,-12842,-12843,-12843,-12843,-12843,-12843,-12846,-12845]} 1. Nf3 {[%emt 0:00:04]} d5 {[%emt 0:00:15]} 2. g3 {[%emt 0:00:06]} Bg4 {[%emt 0:00:38]} 3. Bg2 {[%emt 0:01:28]} e6 {[%emt 0:00:31]} 4. c4 {[%emt 0:01:07]} c6 {[%emt 0:01:04]} 5. cxd5 {[%emt 0:05:47]} Bxf3 {[%emt 0:02:01]} 6. Bxf3 {[%emt 0:00:05]} cxd5 {[%emt 0:00:08]} 7. O-O {[%emt 0:01:19]} Nc6 $1 {[%emt 0:00:26] 7...Nc6 scores better than 7...Nf6.} 8. d3 {[%emt 0:00:49] A11: English Opening: 1...c6.} Nf6 {[%emt 0:01:14]} 9. e4 {[%emt 0:01:35]} dxe4 {[%emt 0:11:24]} 10. dxe4 {[%emt 0:01:05] [#] The position is equal.} Qxd1 $146 {[%emt 0:05:07]} ({Predecessor:} 10... Bc5 11. Nd2 O-O 12. Nb3 Bb6 13. a4 a5 14. Bd2 Nd7 15. Bc3 Nde5 16. Be2 Qe7 {1-0 Grigoryan,K (2584)-Ter Sahakyan,S (2574) ARM-ch 74th Yerevan 2014 (3)}) 11. Rxd1 {[%emt 0:00:36]} Bc5 {[%emt 0:00:10]} 12. Nc3 {[%emt 0:02:38]} h6 {[%emt 0:05:26]} 13. h4 {[%emt 0:05:37]} Ke7 {[%emt 0:14:45]} 14. Na4 {[%emt 0:13:19]} Bd4 {[%emt 0:04:32]} 15. Bd2 {[%emt 0:00:22]} Rhd8 {[%emt 0:01:29]} 16. Rac1 {[%emt 0:03:59]} Rac8 {[%emt 0:00:48]} 17. Kg2 {[%emt 0:02:00]} Ke8 {[%emt 0:08:27]} 18. g4 {[%emt 0:14:32]} Ne5 {[%emt 0:03:34]} 19. Rxc8 {[%emt 0:18:21]} Rxc8 {[%emt 0:00:16]} 20. g5 {[%emt 0:03:16]} hxg5 {[%emt 0:01:37]} 21. hxg5 {[%emt 0:02:19]} Nxf3 {[%emt 0:09:46]} 22. Kxf3 {[%emt 0:00:11] Threatens to win with Bf4.} Nd7 {[%emt 0:00:23]} 23. Bb4 {[%emt 0:04:25]} (23. Ke2 $11 {keeps the balance.}) 23... Rc4 $17 {[%emt 0:04:58]} 24. a3 {[%emt 0:04:00] Strongly threatening b3.} Ne5+ {[%emt 0:01:31]} 25. Ke2 {[%emt 0:05:10]} Nc6 {[%emt 0:02:36]} 26. Kd3 {[%emt 0:02:06]} b5 {[%emt 0:02:17]} (26... Nxb4+ $2 27. Kxc4 Nc6 28. Rd2 $18) 27. Nc3 {[%emt 0:00:35]} Nxb4+ {[%emt 0:01:00]} ({Much weaker is} 27... Bxf2 $6 28. Nxb5 Ne5+ 29. Kd2 $11) 28. axb4 {[%emt 0:00:00]} Rxb4 {[%emt 0:00:07]} 29. Nxb5 {[%emt 0:00:11][%mdl 4160] Endgame Deflection. KRB-KRN} Bc5 {[%emt 0:01:29]} ({Weaker is} 29... Bxb2 30. Nd6+ Kf8 31. Nc4 $15) 30. Nc3 {[%emt 0:02:22]} (30. Ra1 $17) 30... Bxf2 $19 {[%emt 0:00:30]} 31. Kc2 {[%emt 0:00:55]} g6 {[%emt 0:00:51]} 32. e5 {[%emt 0:03:16]} (32. Ra1 $142) 32... Bg3 {[%emt 0:02:36]} 33. Ra1 {[%emt 0:00:37]} Rb7 {[%emt 0:00:29]} ({Black should try} 33... Bxe5 $19 34. Rxa7 Rg4 35. Ra8+ Kd7 36. Ra7+ Ke8) 34. Ra5 $17 {[%emt 0:00:31]} Rc7 {[%emt 0:03:34]} ({Black should play} 34... Bf4 $19 35. Ne4 Kf8) 35. Kd3 {[%emt 0:00:57]} Be1 {[%emt 0:01:33]} 36. Ra6 {[%emt 0:01:57]} Rd7+ {[%emt 0:01:13]} 37. Kc4 {[%emt 0:00:45]} Bxc3 {[%emt 0:01:07]} (37... Bg3 $17 38. Ra5 Bf4) 38. Kxc3 {[%emt 0:00:29] KR-KR} Rd5 {[%emt 0:00:25]} 39. Rxa7 {[%emt 0:00:05]} Rxe5 {[%emt 0:00:03]} 40. b4 {[%emt 0:00:00][%mdl 8192] Wards off Rc5+. Black converts the advantage convincingly.} (40. Ra8+ $11 Kd7 41. Ra7+ Ke8 42. Ra8+ Kd7 43. Ra7+ Kd6 44. Ra6+ Ke7 45. Ra7+ Kd6 46. Ra6+ Kd7 47. Ra7+) 40... Rxg5 $19 {[%emt 0:00:00] aiming for ...Rf5. Black is clearly winning.} 41. Kc4 {[%emt 0:01:07] [#]} Rf5 {[%emt 0:03:06]} 42. b5 {[%emt 0:02:29]} Kd8 {[%emt 0:00:11]} 43. Kb4 {[%emt 0:02:24] [#]} g5 $1 {[%emt 0:01:28][%cal Bg6g5,Bg5g4,Bg4g3][%mdl 32]} 44. Ka5 {[%emt 0:01:26]} g4 {[%emt 0:00:28]} 45. Ka6 {[%emt 0:01:51]} Rf1 {[%emt 0:02:01]} 46. b6 {[%emt 0:01:55]} g3 {[%emt 0:01:36]} 47. Ra8+ {[%emt 0:00:53]} Kd7 {[%emt 0:00:13]} 48. Rg8 {[%emt 0:05:48]} Kc6 {[%emt 0:03:13][%cal Rf1a1]} 49. Rc8+ {[%emt 0:00:18]} Kd5 {[%emt 0:00:11]} 50. Rg8 {[%emt 0:00:30]} Ra1+ {[%emt 0:00:17]} 51. Kb7 {[%emt 0:02:41]} Ra3 {[%emt 0:01:09]} 52. Kc7 {[%emt 0:04:09]} Rc3+ {[%emt 0:00:26]} 53. Kd7 {[%emt 0:02:09]} Rb3 {[%emt 0:00:34]} 54. Kc7 {[%emt 0:01:44]} Ke4 {[%emt 0:00:25]} 55. b7 {[%emt 0:01:52]} Kf3 {[%emt 0:01:00] Weighted Error Value: White=0.61/Black=0.09 (flawless)} 0-1

[Event "European Women-ch 2023"]
[Site "Petrovac"]
[Date "2023.03.27"]
[Round "9.9"]
[White "Eric, Jovana"]
[Black "Zawadzka, Jolanta"]
[Result "1/2-1/2"]
[ECO "B43"]
[WhiteElo "2230"]
[BlackElo "2391"]
[Annotator "TA"]
[PlyCount "117"]
[EventDate "2023.03.15"]
[EventType "swiss"]
[EventCountry "MNE"]
[SourceTitle "playchess.com"]
[Source "ChessBase"]
[SourceQuality "1"]
[TimeControl "40/5400+30:1800+30"]

{[%evp 15,117,18,37,4,20,13,28,11,14,15,15,13,13,13,13,15,14,20,21,21,19,14,18,20,21,19,34,30,77,59,100,55,97,84,82,91,112,71,75,73,90,62,93,85,75,58,72,68,98,99,135,111,136,70,71,61,152,139,145,43,141,139,173,163,161,110,115,101,83,8,8,8,8,8,8,8,8,8,8,8,8,8,8,8,18,8,8,8,8,8,8,8,8,8,8,8,8,8,8,8,8,8,8,0]} 1. e4 {[%emt 0:00:03]} c5 {[%emt 0:00:05]} 2. Nf3 {[%emt 0:00:07]} e6 {[%emt 0:00:05]} 3. d4 {[%emt 0:00:07]} cxd4 {[%emt 0:00:04]} 4. Nxd4 {[%emt 0:00:04]} a6 {[%emt 0:00:04]} 5. Nc3 {[%emt 0:00:18]} b5 {[%emt 0:00:11][%cal Bb7b5,Bb5b4][%mdl 32]} 6. Bd3 {[%emt 0:00:47]} Bb7 {[%emt 0:00:23]} 7. O-O {[%emt 0:00:37]} Nc6 {[%emt 0:00:11]} 8. Nxc6 {[%emt 0:01:36]} Bxc6 {[%emt 0:00:05]} 9. Qe2 {[%emt 0:00:35] B43: Sicilian: Kan Variation: 5 Nc3.} Bc5 {[%emt 0:00:49]} 10. a4 {[%emt 0:05:47][%cal Ra4b5]} b4 {[%emt 0:00:10] [#]} 11. Nd5 {[%emt 0:00:26][%cal Oc1f4] White has an edge.} Bb7 {[%emt 0:00:36]} 12. Be3 {[%emt 0:03:29]} Qa5 {[%emt 0:00:41]} 13. Bxc5 {[%emt 0:09:23]} Qxc5 {[%emt 0:00:05]} 14. Qe3 {[%emt 0:01:42]} Qxe3 {[%emt 0:00:08]} 15. Nxe3 {[%emt 0:00:03] [#]} Nf6 $146 {[%emt 0:00:07]} ({Predecessor:} 15... d6 16. Nc4 O-O-O 17. Na5 Nf6 18. c3 bxc3 19. Rfc1 Bxe4 20. Rxc3+ Kd7 21. Bxa6 e5 {1-0 Loxine,J (2408)-Wetscherek,A (2355) BL2-Ost 1213 2012 (8.5)}) 16. e5 {[%emt 0:03:07]} Nd5 {[%emt 0:04:25]} 17. Nc4 $36 {[%emt 0:00:58][%mdl 2048] And now Nd6+ would win. Black is under pressure.} Ke7 {[%emt 0:00:46]} 18. Na5 {[%emt 0:02:46]} Bc6 {[%emt 0:06:45]} 19. Nxc6+ {[%emt 0:06:31]} dxc6 {[%emt 0:00:05]} 20. a5 $1 {[%emt 0:00:03]} Rhd8 {[%emt 0:14:41]} 21. Bc4 {[%emt 0:09:15]} f6 {[%emt 0:15:56]} (21... Nc7 $11) 22. Rfe1 {[%emt 0:06:56]} Rd7 {[%emt 0:07:50]} 23. g3 {[%emt 0:08:41]} Nc7 {[%emt 0:03:47]} 24. exf6+ {[%emt 0:04:14]} gxf6 {[%emt 0:00:41]} 25. Re4 {[%emt 0:03:41]} Rad8 {[%emt 0:11:50]} 26. Rae1 {[%emt 0:06:21][%cal Rc4e6]} Rd4 {[%emt 0:01:13]} 27. b3 {[%emt 0:03:46]} ({Worse is} 27. Bxe6 Rxe4 28. Rxe4 Nxe6 $19) 27... R8d6 {[%emt 0:06:02]} 28. Kg2 {[%emt 0:02:57]} c5 {[%emt 0:01:00]} 29. Rxd4 {[%emt 0:06:44]} Rxd4 $16 {[%emt 0:00:14][%mdl 4096] Endgame KRB-KRN} 30. Kf3 {[%emt 0:01:03]} f5 {[%emt 0:05:10] Prevents Re4} 31. h3 {[%emt 0:00:47]} Kf6 {[%emt 0:02:12]} 32. g4 $1 {[%emt 0:00:47]} Rd7 {[%emt 0:04:22]} 33. gxf5 {[%emt 0:02:28]} Kxf5 {[%emt 0:00:16]} 34. Re3 {[%emt 0:03:12] White is more active.} (34. Re4 $16) 34... e5 $14 {[%emt 0:02:10]} 35. Ke2 {[%emt 0:03:28]} Nb5 {[%emt 0:10:47]} (35... Nd5 $14) 36. Rf3+ $16 {[%emt 0:01:54]} Kg5 {[%emt 0:00:19]} 37. Rg3+ {[%emt 0:00:17]} (37. Ke3 $16) 37... Kf5 {[%emt 0:00:43] [#]} (37... Kf6 $1 $14) 38. Ke3 $1 {[%emt 0:01:26]} Nd4 {[%emt 0:00:32]} 39. Bd3+ {[%emt 0:02:04]} ({Weaker is} 39. Bxa6 Nxc2+ 40. Ke2 Nd4+ 41. Ke3 Nc2+ 42. Ke2 Nd4+ 43. Ke3 Kf6 $11) 39... Kf6 {[%emt 0:00:27]} 40. Rg4 {[%emt 0:00:00]} (40. Rg8 $18) 40... Nf5+ {[%emt 0:00:00]} 41. Bxf5 {[%emt 0:08:37]} Kxf5 {[%emt 0:03:09] [#] KR-KR} 42. Rg8 {[%emt 0:00:04]} ({White should try} 42. Rh4 $1 $16) 42... c4 $11 {[%emt 0:08:50] The position is equal.} 43. Rf8+ {[%emt 0:07:18]} Ke6 {[%emt 0:00:19]} 44. bxc4 {[%emt 0:04:54] Strongly threatening Rb8.} Rc7 {[%emt 0:02:27]} 45. Ra8 {[%emt 0:00:23]} Rxc4 {[%emt 0:04:09]} 46. Rxa6+ {[%emt 0:00:06]} Kd5 {[%emt 0:00:03]} 47. Rb6 {[%emt 0:01:19]} Rxc2 {[%emt 0:01:47]} 48. Rxb4 {[%emt 0:00:30] Hoping for Ra4.} Rc3+ {[%emt 0:00:08]} 49. Ke2 {[%emt 0:00:41] aiming for Ra4.} Ra3 {[%emt 0:01:43] Repels Ra4} 50. Rh4 {[%emt 0:01:29]} Rxa5 {[%emt 0:00:04]} 51. Rxh7 {[%emt 0:00:04]} Ke4 {[%emt 0:00:12]} 52. Rh4+ {[%emt 0:01:44]} Kf5 {[%emt 0:00:06]} 53. Kf3 {[%emt 0:00:04]} Ra3+ {[%emt 0:00:10]} 54. Kg2 {[%emt 0:00:06]} e4 $1 {[%emt 0:01:09]} 55. Rh5+ {[%emt 0:04:29]} Kf6 {[%emt 0:01:26]} 56. Rh6+ {[%emt 0:02:06]} Kf5 {[%emt 0:00:34]} 57. Rh8 {[%emt 0:00:55]} e3 {[%emt 0:03:24]} 58. Rf8+ {[%emt 0:00:16]} Kg6 {[%emt 0:01:07]} 59. fxe3 {[%emt 0:00:29] Black defended with fortune.   Weighted Error Value: White=0.13 (very precise) /Black=0.11 (very precise)} 1/2-1/2